[Event "XVI Memorial Lezcano Montalvo 2024"]
[Site "Gran Canaria"]
[Date "2024.03.29"]
[Round "7.6"]
[White "Oudeh Mishmesh, Omar"]
[Black "Omelja, Artem"]
[Result "1/2-1/2"]
[ECO "B13"]
[WhiteElo "2301"]
[BlackElo "2438"]
[Annotator "RC"]
[PlyCount "32"]
[EventDate "2024.03.23"]
[EventType "swiss"]
[EventCountry "ESP"]
[SourceTitle "playchess.com"]
[Source "ChessBase"]
[SourceQuality "1"]
[TimeControl "5400+30"]

1. e4 {[%emt 0:00:11]} c6 {[%emt 0:00:35]} 2. d4 {[%emt 0:00:07]} d5 {[%emt 0:00:06]} 3. exd5 {[%emt 0:00:31]} cxd5 {[%emt 0:00:08]} 4. Bd3 {[%emt 0:00:06]} Nc6 {[%emt 0:00:31]} 5. c3 {[%emt 0:00:07]} Nf6 {[%emt 0:02:10]} 6. h3 {[%emt 0:01:25]} g6 {[%emt 0:01:16]} 7. Nf3 {[%emt 0:00:10]} Bg7 {[%emt 0:00:47]} 8. Qc2 {[%emt 0:00:30]} O-O {[%emt 0:01:05]} 9. O-O {[%emt 0:03:59]} Ne8 {[%emt 0:15:14]} 10. Bf4 {[%emt 0:03:21]} Nd6 {[%emt 0:01:32]} 11. Nbd2 {[%emt 0:03:28]} Bf5 {[%emt 0:06:22]} 12. Bxf5 {[%emt 0:02:25]} Nxf5 {[%emt 0:00:10]} 13. Rfe1 {[%emt 0:00:57]} e6 {[%emt 0:00:57]} 14. Qd3 {[%emt 0:01:06]} Nd6 {[%emt 0:03:30]} 15. h4 {[%emt 0:04:47]} b5 {[%emt 0:07:18]} 16. h5 {[%emt 0:12:06]} Re8 {[%emt 0:01:03]} 1/2-1/2

[Event "XVI Memorial Lezcano Montalvo 2024"]
[Site "Gran Canaria"]
[Date "2024.03.29"]
[Round "7.7"]
[White "Fiorito, Fabian"]
[Black "Yankelevich, Lev"]
[Result "1/2-1/2"]
[ECO "A50"]
[WhiteElo "2251"]
[BlackElo "2412"]
[Annotator "TA"]
[PlyCount "45"]
[EventDate "2024.03.23"]
[EventType "swiss"]
[EventCountry "ESP"]
[SourceTitle "playchess.com"]
[Source "ChessBase"]
[SourceQuality "1"]
[TimeControl "5400+30"]

{[%evp 12,45,17,24,38,37,31,33,33,28,40,-16,-8,-29,-22,-14,-9,-24,-33,-35,61,39,40,0,18,8,48,45,50,32,50,14,67,0,252,-9]} 1. Nf3 {[%emt 0:00:02]} Nf6 {[%emt 0:01:41]} 2. g3 {[%emt 0:00:09]} b6 {[%emt 0:00:12]} 3. Bg2 {[%emt 0:00:08]} Bb7 {[%emt 0:00:05]} 4. O-O {[%emt 0:00:39]} g6 {[%emt 0:00:11]} 5. c4 {[%emt 0:00:50]} Bg7 {[%emt 0:00:18]} 6. d4 {[%emt 0:00:48]} O-O {[%emt 0:00:07]} 7. d5 {[%emt 0:01:07]} Na6 {[%emt 0:02:56]} 8. Nc3 {[%emt 0:00:06] Wards off Ne4} Nc5 {[%emt 0:00:05]} 9. Re1 {[%emt 0:00:05]} e6 {[%emt 0:08:52] White is slightly better.} 10. e4 {[%emt 0:01:16] Black must now prevent e5.} d6 {[%emt 0:00:47]} 11. dxe6 {[%emt 0:14:53]} ({White should try} 11. Nd4 $14) 11... Nxe6 {[%emt 0:04:31]} 12. Ng5 {[%emt 0:05:49][%cal Bf3g5,Bg5h3,Bh3f4][%mdl 32] [#] e5 is the strong threat.} Nc5 {[%emt 0:01:18]} 13. Nh3 {[%emt 0:01:15]} Re8 {[%emt 0:05:37]} 14. f3 {[%emt 0:00:56]} Nfd7 {[%emt 0:00:41]} 15. Bg5 {[%emt 0:03:12]} Bf6 {[%emt 0:09:29]} (15... Qc8 $15) 16. Bxf6 {[%emt 0:00:44]} Qxf6 {[%emt 0:00:14]} 17. Nf4 {[%emt 0:01:13]} c6 $1 {[%emt 0:00:24]} 18. Rc1 {[%emt 0:01:58]} Ne5 {[%emt 0:02:57][%cal Og6g5]} 19. b4 {[%emt 0:02:01]} Ne6 {[%emt 0:01:00]} 20. Nxe6 {[%emt 0:00:25]} Qxe6 {[%emt 0:00:34]} 21. Ne2 {[%emt 0:08:02]} Qe7 {[%emt 0:59:01]} (21... Nxc4 $2 {perishes.} 22. Nf4 Qe5 23. Rxc4 $18) (21... c5 $11) 22. b5 {[%emt 0:55:52]} ({Better is} 22. f4 $14) 22... Qe6 $2 {[%mdl 8192] [#]} (22... cxb5 $11 {and Black stays safe.} 23. cxb5 Rac8) 23. Nc3 $2 {Weighted Error Value: White=0.18 (very precise) /Black=0.48.  Loses game:     	---       	Black=1      Missed win:     	White=1     	---        Mistake:       	White=2     	Black=2      Inaccurate:     	White=1     	Black=1      OK:         	White=4     	Black=4      Best:        	White=1     	---        Strong:       	---       	Black=1} (23. f4 $1 $18) 1/2-1/2

[Event "XVI Memorial Lezcano Montalvo 2024"]
[Site "Gran Canaria"]
[Date "2024.03.29"]
[Round "7.8"]
[White "Garcia Padron, Jose"]
[Black "Loiacono, Leonardo"]
[Result "0-1"]
[ECO "D29"]
[WhiteElo "2385"]
[BlackElo "2316"]
[Annotator "RC"]
[PlyCount "56"]
[EventDate "2024.03.23"]
[EventType "swiss"]
[EventCountry "ESP"]
[SourceTitle "playchess.com"]
[Source "ChessBase"]
[SourceQuality "1"]
[TimeControl "5400+30"]

1. d4 {[%emt 0:00:30]} Nf6 {[%emt 0:02:28]} 2. Nf3 {[%emt 0:00:38]} c5 {[%emt 0:01:10]} 3. e3 {[%emt 0:00:24]} d5 {[%emt 0:03:20]} 4. c4 {[%emt 0:00:07]} dxc4 {[%emt 0:02:51]} 5. Bxc4 {[%emt 0:00:08]} e6 {[%emt 0:00:02]} 6. O-O {[%emt 0:00:38]} a6 {[%emt 0:00:57]} 7. Qe2 {[%emt 0:06:17]} b5 {[%emt 0:03:28]} 8. Bb3 {[%emt 0:00:08]} Bb7 {[%emt 0:00:38]} 9. Rd1 {[%emt 0:01:03]} Nbd7 {[%emt 0:01:33]} 10. a4 {[%emt 0:03:37]} b4 {[%emt 0:00:03]} 11. Nbd2 {[%emt 0:00:20]} Qc7 {[%emt 0:04:20]} 12. Bc4 {[%emt 0:23:00]} cxd4 {[%emt 0:05:20]} 13. exd4 {[%emt 0:00:34]} Bd6 {[%emt 0:09:55]} 14. b3 {[%emt 0:06:14]} Nb6 {[%emt 0:07:43]} 15. Bb2 {[%emt 0:01:36]} Nxc4 {[%emt 0:00:29]} 16. bxc4 {[%emt 0:00:57]} O-O {[%emt 0:00:37]} 17. d5 {[%emt 0:01:24]} Nh5 {[%emt 0:12:38]} 18. g3 {[%emt 0:29:48]} exd5 {[%emt 0:05:13]} 19. Nh4 {[%emt 0:01:56]} g6 {[%emt 0:03:03]} 20. cxd5 {[%emt 0:05:38]} Qc2 {[%emt 0:12:21]} 21. Rab1 {[%emt 0:03:25]} Bxd5 {[%emt 0:06:25]} 22. Rdc1 {[%emt 0:03:44]} Rae8 {[%emt 0:01:28]} 23. Qxa6 {[%emt 0:00:06]} Qxd2 {[%emt 0:00:03]} 24. Qxd6 {[%emt 0:00:07]} Re6 {[%emt 0:00:31]} 25. Qc7 {[%emt 0:04:45]} Rfe8 {[%emt 0:01:51]} 26. Ng2 {[%emt 0:00:44]} Qe2 {[%emt 0:02:57]} 27. Nf4 {[%emt 0:01:14]} Nxf4 {[%emt 0:00:11]} 28. Qxf4 {[%emt 0:00:01]} Qe1+ {[%emt 0:00:08]} 0-1

[Event "XVI Memorial Lezcano Montalvo 2024"]
[Site "Gran Canaria"]
[Date "2024.03.29"]
[Round "7.9"]
[White "Strikovic, Aleksa"]
[Black "Tytynnik, Artem"]
[Result "1-0"]
[ECO "A16"]
[WhiteElo "2430"]
[BlackElo "2197"]
[Annotator "TA"]
[PlyCount "95"]
[EventDate "2024.03.23"]
[EventType "swiss"]
[EventCountry "ESP"]
[SourceTitle "playchess.com"]
[Source "ChessBase"]
[SourceQuality "1"]
[TimeControl "5400+30"]

{[%evp 12,95,24,26,58,29,42,38,51,45,57,38,56,57,53,42,83,83,77,46,75,70,110,108,108,77,137,83,87,31,24,32,32,20,246,253,239,264,276,274,386,385,412,365,374,372,382,66,60,77,247,245,257,254,418,443,510,479,414,463,479,498,576,540,553,500,674,563,845,826,1086,1011,800,454,6083,4698,29986,29987,29987,29988,29990,29991,29991,29992,29992,29993]} 1. c4 {[%emt 0:00:03]} Nf6 {[%emt 0:04:43]} 2. Nc3 {[%emt 0:00:11]} d5 {[%emt 0:00:06]} 3. cxd5 {[%emt 0:00:18]} Nxd5 {[%emt 0:00:04]} 4. g3 {[%emt 0:01:08]} g6 {[%emt 0:01:19]} 5. Bg2 {[%emt 0:00:08]} Nxc3 {[%emt 0:00:11]} 6. bxc3 {[%emt 0:00:07]} Bg7 {[%emt 0:00:21]} 7. h4 {[%emt 0:00:53]} h5 {[%emt 0:01:32]} 8. Nf3 {[%emt 0:00:15]} O-O {[%emt 0:07:22]} 9. Ng5 {[%emt 0:00:22][%cal Og3g4]} Nd7 {[%emt 0:03:44] White is slightly better.} 10. O-O {[%emt 0:02:44]} c5 {[%emt 0:06:23]} 11. Rb1 {[%emt 0:15:25][%cal Od1b3]} Rb8 {[%emt 0:03:05]} 12. d4 {[%emt 0:01:54]} b6 {[%emt 0:07:49]} 13. e4 {[%emt 0:04:41]} Bb7 {[%emt 0:09:00]} 14. Be3 {[%emt 0:10:35] White is more active.} e6 {[%emt 0:04:29]} 15. Qb3 {[%emt 0:04:21]} Qe7 {[%emt 0:03:21]} 16. Rfd1 {[%emt 0:07:31]} cxd4 {[%emt 0:05:12]} 17. cxd4 {[%emt 0:01:28]} Rbc8 {[%emt 0:01:56]} 18. a4 {[%emt 0:03:00]} Ba6 {[%emt 0:03:28]} ({Black should try} 18... Rc7) 19. Rbc1 {[%emt 0:01:30]} (19. e5 $142) 19... Nf6 {[%emt 0:05:27]} 20. d5 {[%emt 0:05:08]} (20. e5 $16 Ng4 21. d5 Rxc1 22. Rxc1 (22. Bxc1 Qc5 $11) 22... exd5 23. Bxd5 Bxe5 24. Re1) 20... exd5 $14 {[%emt 0:00:35]} 21. exd5 {[%emt 0:00:01] d6 would now be deadly.} Rxc1 {[%emt 0:01:14]} 22. Bxc1 {[%emt 0:00:31][%cal Be3c1,Bc1a3,Ba3e7][%mdl 32] Ba3 is the strong threat.} Ng4 $2 {[%emt 0:02:49]} (22... Qe2 $11 {and Black is okay.}) 23. Ba3 $1 $18 {[%emt 0:15:58]} Qe2 {[%emt 0:00:43]} 24. Qf3 {[%emt 0:00:02]} Qxf3 {[%emt 0:12:47]} (24... Nxf2 $2 25. Qxe2 Bxe2 26. Rd2 $18) 25. Bxf3 {[%emt 0:00:11]} Rd8 {[%emt 0:00:40] [#]} (25... Rb8 {was necessary.} 26. Bxg4 (26. d6 Ne5 $18) 26... hxg4) 26. Be7 $1 {[%emt 0:00:26]} (26. d6 Bc4 $14) 26... Rd7 {[%emt 0:00:20]} 27. d6 {[%emt 0:00:13]} Ne5 {[%emt 0:00:19] Wards off Bc6} 28. Bd5 {[%emt 0:04:13] Strongly threatening f4.} Bc4 {[%emt 0:04:19] [#]} 29. Nxf7 $2 {[%emt 0:06:57]} Bxd5 $14 {[%emt 0:01:23]} 30. Nxe5 {[%emt 0:00:12]} Bxe5 {[%emt 0:00:08] White stays focused until the end.} (30... Bb3 $16 {keeps fighting.} 31. Nxd7 Bxd1) 31. Rxd5 $18 {[%emt 0:00:03][%mdl 4096] Endgame. KRB-KRB} Bc3 {[%emt 0:03:36]} 32. f4 {[%emt 0:00:26]} Bb4 $2 {[%emt 0:02:57]} (32... Kf7 33. f5 gxf5) 33. Kg2 {[%emt 0:00:07]} Kf7 {[%emt 0:00:33]} 34. f5 {[%emt 0:00:06]} gxf5 {[%emt 0:01:35]} 35. Rxf5+ {[%emt 0:00:07]} Ke6 {[%emt 0:00:09]} 36. Rxh5 {[%emt 0:02:38]} Bxd6 {[%emt 0:00:08]} 37. Bxd6 {[%emt 0:00:06]} Kxd6 {[%emt 0:00:14] KR-KR} 38. Rh8 {[%emt 0:01:07]} Ke5 {[%emt 0:02:01]} 39. Rf8 {[%emt 0:00:12]} Rd2+ {[%emt 0:01:51]} 40. Kh3 {[%emt 0:00:44]} a5 {[%emt 0:01:01]} 41. Rf4 {[%emt 0:03:23]} Rb2 {[%emt 0:01:32]} 42. h5 {[%emt 0:01:29][%cal Bh4h5,Bh5h6][%mdl 32]} Rb4 {[%emt 0:00:22]} (42... b5 $142 43. axb5 Rxb5) 43. h6 {[%emt 0:01:57] White wants to mate with h7.} Rxf4 {[%emt 0:00:18]} 44. gxf4+ {[%emt 0:00:04] White mates.} Kf6 {[%emt 0:00:05] [#]} 45. f5 $1 {[%emt 0:00:03][%mdl 512]} b5 {[%emt 0:00:05]} (45... Kg5 46. h7) 46. axb5 {[%emt 0:00:19][%cal Ba4b5,Bb5b6,Bb6b7][%mdl 32]} a4 {[%emt 0:00:11][%cal Ba5a4,Ba4a3][%mdl 32]} 47. b6 {[%emt 0:00:16]} a3 {[%emt 0:00:05]} 48. b7 {[%emt 0:00:20] Weighted Error Value: White=0.24 (precise) /Black=0.46.  Loses game:     	---       	Black=2      Missed win:     	White=1     	---        Mistake:       	White=2     	Black=3      Inaccurate:     	White=2     	Black=7      OK:         	White=16    	Black=10     Best:        	White=1     	Black=3      Strong:       	White=2     	---} 1-0

[Event "XVI Memorial Lezcano Montalvo 2024"]
[Site "Gran Canaria"]
[Date "2024.03.29"]
[Round "7.10"]
[White "Fiorito, Joaquin"]
[Black "Lizzul Coppe, Mirko"]
[Result "1/2-1/2"]
[ECO "D90"]
[WhiteElo "2409"]
[BlackElo "2027"]
[Annotator "TA"]
[PlyCount "89"]
[EventDate "2024.03.23"]
[EventType "swiss"]
[EventCountry "ESP"]
[SourceTitle "playchess.com"]
[Source "ChessBase"]
[SourceQuality "1"]
[TimeControl "5400+30"]

{[%evp 9,89,-4,42,49,56,-13,0,-19,-26,-24,-31,-54,-20,-30,-13,-53,-41,-75,25,0,0,0,43,34,49,58,210,-59,-65,-63,-69,-63,-45,-52,-43,-45,-18,-29,-36,-31,-27,-18,-28,-27,-23,-22,-19,-51,0,0,0,-8,0,-8,-22,-55,-50,-81,-72,-79,-32,-66,0,-76,-50,-74,-56,-55,-55,-55,-55,-91,-103,-96,-89,-136,-136,-152,-152,-152,-152,-96]} 1. d4 {[%emt 0:00:06]} Nf6 {[%emt 0:00:01]} 2. c4 {[%emt 0:00:10]} g6 {[%emt 0:00:03]} 3. Nc3 {[%emt 0:00:07]} d5 {[%emt 0:00:02]} 4. Nf3 {[%emt 0:00:22]} Bg7 {[%emt 0:00:23]} 5. h4 {[%emt 0:00:14]} h5 {[%emt 0:07:27]} (5... dxc4 $11 {deserves consideration.} 6. e4 c5) 6. Bg5 $14 {[%emt 0:00:05]} c6 {[%emt 0:12:39]} 7. Bxf6 {[%emt 0:00:51]} ({Better is} 7. cxd5 $14 Nxd5 8. e4) 7... Bxf6 $11 {[%emt 0:01:06]} 8. Qb3 {[%emt 0:00:07] The position is equal.} dxc4 {[%emt 0:06:22]} 9. Qxc4 {[%emt 0:00:08]} O-O {[%emt 0:05:36]} 10. e4 {[%emt 0:02:18]} b5 {[%emt 0:07:55]} 11. Qd3 {[%emt 0:00:09]} b4 {[%emt 0:08:34]} 12. Ne2 {[%emt 0:03:41] [#]} e5 $1 {[%emt 0:12:30]} 13. Rd1 {[%emt 0:00:42]} (13. O-O-O exd4) 13... Ba6 {[%emt 0:01:20]} (13... exd4 $17 {Strongly threatening ...c5.} 14. e5 Re8 15. exf6 c5) 14. Qb3 {[%emt 0:01:46]} (14. Qc2 {simplifies} Qc7 15. dxe5 Bxe5 16. Nxe5 Qxe5 17. f4) 14... exd4 {[%emt 0:11:01]} 15. e5 {[%emt 0:01:37]} c5 {[%emt 0:05:47][%cal Od4d3] White must now prevent ...d3!} 16. Nf4 {[%emt 0:06:18][%cal Of4g6] Hoping for Nxg6!} Re8 {[%emt 0:06:21]} 17. Bxa6 {[%emt 0:00:47]} Bxe5 $2 {[%emt 0:03:42] [#]} (17... Nxa6 $14 18. O-O (18. Nxg6 Bg7 $11) 18... Bxe5 19. Nxe5 Rxe5) 18. Bb5 $2 {[%emt 0:00:29]} ({Don't take} 18. Nxg6 $6 Bg7+) (18. Nxe5 $18 Rxe5+ 19. Be2) 18... Bxf4+ $15 {[%emt 0:01:09]} 19. Bxe8 {[%emt 0:00:07]} Qxe8+ {[%emt 0:00:05]} 20. Kf1 {[%emt 0:00:37][%cal Of3d4]} Nd7 {[%emt 0:01:03]} 21. g3 {[%emt 0:00:51]} Bh6 {[%emt 0:00:19]} (21... Qe4 $5 22. gxf4 c4 23. Rxd4 (23. Qxc4 $2 {is the wrong capture.} Qxf3 24. Qxd4 Qxh1+ $19) 23... Qxd4 24. Nxd4 cxb3 25. Nxb3 Nb6 $15) 22. Qd5 {[%emt 0:03:28] Prevents Qe4} Rc8 {[%emt 0:01:49]} 23. Kg2 {[%emt 0:01:28]} Nb6 {[%emt 0:00:49]} 24. Qb7 {[%emt 0:00:32][%cal Oh1e1]} Qd7 {[%emt 0:02:13]} 25. Qxd7 {[%emt 0:01:22]} Nxd7 {[%emt 0:00:01]} 26. Rhe1 {[%emt 0:00:36]} Bf8 {[%emt 0:01:12] Prevents Re7} 27. b3 {[%emt 0:02:15]} Nb6 {[%emt 0:00:26]} 28. Ne5 {[%emt 0:01:05]} Nd5 {[%emt 0:01:19]} (28... a5 $15) 29. Nc4 $11 {[%emt 0:00:41]} Nc3 {[%emt 0:00:17]} 30. Rd3 {[%emt 0:00:13]} Rc7 {[%emt 0:01:29]} 31. Ra1 {[%emt 0:03:52]} Rc6 {[%emt 0:01:53]} 32. a3 {[%emt 0:01:41]} Ra6 {[%emt 0:00:10]} 33. a4 {[%emt 0:01:15]} Re6 {[%emt 0:00:33] Wards off Re1} 34. Kf1 {[%emt 0:00:08]} Bg7 {[%emt 0:01:03]} (34... Kg7 $17) 35. a5 {[%emt 0:00:46]} a6 {[%emt 0:00:22]} ({Black should play} 35... Kf8 $15) 36. Nb6 {[%emt 0:00:56]} (36. Re1 $11) 36... f6 $36 {[%emt 0:00:51][%mdl 2048] Black has good play.} 37. Nd7 {[%emt 0:00:26]} Rc6 {[%emt 0:00:20]} 38. Re1 {[%emt 0:01:16]} Kf7 {[%emt 0:00:20] Prevents Re8.} 39. Nb6 {[%emt 0:04:08]} Bf8 {[%emt 0:00:40]} 40. Rf3 {[%emt 0:01:01]} Bd6 {[%emt 0:00:39]} 41. Nc4 {[%emt 0:00:43]} Bc7 {[%emt 0:00:28]} 42. Kg2 {[%emt 0:02:33]} (42. Rd3 $142) 42... Re6 $17 {[%emt 0:00:30] Black is clearly better.} 43. Kf1 {[%emt 0:03:11]} Rxe1+ {[%emt 0:00:15]} 44. Kxe1 {[%emt 0:00:05]} f5 {[%emt 0:00:47]} 45. Rd3 {[%emt 0:00:59] Weighted Error Value: White=0.26 (precise) /Black=0.20 (precise) .  Missed win:     	White=1     	---        Mistake:       	White=3     	Black=5      Inaccurate:     	White=7     	Black=4      OK:         	White=13    	Black=13     Best:        	White=3     	Black=3} 1/2-1/2

[Event "XVI Memorial Lezcano Montalvo 2024"]
[Site "Gran Canaria"]
[Date "2024.03.29"]
[Round "7.11"]
[White "Perez Bolanos, David"]
[Black "Sanz Wawer, Daniel"]
[Result "0-1"]
[ECO "E25"]
[WhiteElo "2053"]
[BlackElo "2397"]
[Annotator "TA"]
[PlyCount "94"]
[EventDate "2024.03.23"]
[EventType "swiss"]
[EventCountry "ESP"]
[SourceTitle "playchess.com"]
[Source "ChessBase"]
[SourceQuality "1"]
[TimeControl "5400+30"]

{[%evp 17,94,1,11,0,15,7,3,4,8,6,0,0,46,32,48,5,15,0,0,0,0,0,0,-4,0,-24,0,0,21,0,27,-5,-3,-6,0,-16,-8,-8,-10,-15,-14,-8,-18,-12,-4,-3,0,-8,-8,-17,-20,-255,-255,-248,-232,-272,-272,-293,-223,-229,-241,-262,-229,-317,-310,-286,-179,-248,-180,-168,-195,-322,-319,-411,-411,-377,-370,-29973,-12265]} 1. d4 {[%emt 0:00:04]} Nf6 {[%emt 0:00:06]} 2. c4 {[%emt 0:00:10]} e6 {[%emt 0:00:04]} 3. Nc3 {[%emt 0:00:08]} Bb4 {[%emt 0:00:04]} 4. f3 {[%emt 0:00:21]} d5 {[%emt 0:00:29]} 5. a3 {[%emt 0:00:09]} Bxc3+ {[%emt 0:00:04]} 6. bxc3 {[%emt 0:00:11]} c5 {[%emt 0:00:03]} 7. cxd5 {[%emt 0:00:28]} Nxd5 {[%emt 0:00:20]} 8. dxc5 {[%emt 0:00:15]} f5 {[%emt 0:00:17]} 9. Nh3 {[%emt 0:01:16]} O-O {[%emt 0:03:40][%cal Ob8c6]} 10. Nf4 {[%emt 0:01:26]} Nxc3 {[%emt 0:22:00]} 11. Qxd8 {[%emt 0:13:29]} Rxd8 {[%emt 0:00:04]} 12. Bd2 {[%emt 0:01:00] The position is equal.} Nd5 {[%emt 0:01:17]} 13. Rc1 {[%emt 0:01:29]} Nc6 {[%emt 0:00:30]} 14. Nxd5 {[%emt 0:01:10]} exd5 {[%emt 0:05:51]} (14... Rxd5 $11 15. g4 Nd4) 15. e3 $14 {[%emt 0:04:49]} Be6 {[%emt 0:06:32]} 16. Bb5 {[%emt 0:02:41]} Ne5 {[%emt 0:01:25]} 17. Bc3 {[%emt 0:01:55]} Nc4 {[%emt 0:03:44]} 18. Bxc4 {[%emt 0:04:59]} dxc4 {[%emt 0:00:10]} 19. Ke2 {[%emt 0:06:47]} Rd3 {[%emt 0:08:17]} 20. Rhd1 {[%emt 0:03:41]} Rad8 {[%emt 0:00:11]} 21. Rd2 {[%emt 0:03:56]} R8d7 {[%emt 0:07:48]} 22. Rcd1 {[%emt 0:05:23][%cal Rd2d3]} Kf7 {[%emt 0:03:19]} 23. Be5 {[%emt 0:03:23][%cal Rd2d3]} g5 {[%emt 0:18:07]} 24. Bb8 {[%emt 0:05:28]} Rd8 {[%emt 0:04:23]} 25. Be5 {[%emt 0:04:04][%cal Rd2d3]} (25. Bg3 {simplifies} Rc8 26. Rxd3 cxd3+ 27. Kxd3 Rxc5 28. e4) 25... g4 {[%emt 0:03:47]} (25... Rc8 {simplifies} 26. Rxd3 cxd3+ 27. Kxd3 Rxc5 28. Bb8 Rd5+) 26. fxg4 {[%emt 0:05:21][%cal Rd2d3]} f4 {[%emt 0:04:51]} 27. Rxd3 {[%emt 0:02:51]} Bxg4+ {[%emt 0:00:13]} 28. Kf2 {[%emt 0:00:24]} cxd3 $11 {[%emt 0:01:15][%mdl 4096] Endgame. KRB-KRB} 29. Rd2 {[%emt 0:00:18]} fxe3+ {[%emt 0:00:11]} 30. Kxe3 {[%emt 0:00:06]} Bf5 {[%emt 0:03:15]} 31. g4 {[%emt 0:01:27]} Bg6 {[%emt 0:00:07]} (31... Bxg4 {simplifies} 32. Rxd3 Rxd3+ 33. Kxd3 h5) 32. h4 {[%emt 0:00:32] [#] h5 would now be deadly.} Ke6 {[%emt 0:00:21]} 33. Bc7 {[%emt 0:04:19]} Rc8 {[%emt 0:01:46]} 34. h5 $2 {[%emt 0:02:18] White does not recover from this.} (34. Bd6 $11) 34... Rxc7 $19 {[%emt 0:00:51]} 35. hxg6 {[%emt 0:00:06]} hxg6 {[%emt 0:00:02]} (35... Rxc5 36. gxh7 (36. Rxd3 $2 hxg6 37. Rb3 Re5+ 38. Kf3 b5 $19) 36... Rc8 37. g5 $18 (37. Rxd3 Rh8 $14)) 36. Rxd3 {[%emt 0:00:12]} Rxc5 {[%emt 0:00:05] KR-KR} 37. Kf3 {[%emt 0:03:30]} Rd5 {[%emt 0:01:01]} 38. Rb3 {[%emt 0:01:43]} b6 {[%emt 0:00:12]} 39. Rc3 {[%emt 0:00:34]} Kd6 {[%emt 0:00:19] Prevents Rc6+.} 40. Kf4 {[%emt 0:00:29]} g5+ {[%emt 0:00:17]} 41. Ke4 {[%emt 0:00:09]} Re5+ {[%emt 0:00:09]} 42. Kd4 {[%emt 0:00:07]} Ra5 {[%emt 0:00:12] Strongly threatening ...Ra4+.} 43. Ke4 {[%emt 0:00:13]} Rc5 {[%emt 0:00:36]} 44. Rf3 {[%emt 0:00:16]} (44. Rh3 {was the only chance.}) 44... Ke6 {[%emt 0:00:46]} 45. Kd4 {[%emt 0:01:21]} Ra5 {[%emt 0:00:44]} 46. Re3+ {[%emt 0:00:32]} Kd6 {[%emt 0:00:13] ( -> ...Ra4+)} 47. Rd3 $2 {[%emt 0:00:33] [#]} (47. Rb3 $19) 47... Rd5+ {[%emt 0:04:02] Weighted Error Value: White=0.43/Black=0.08 (flawless) .  Loses game:     	White=1     	---        Mistake:       	White=2     	Black=1      Inaccurate:     	White=3     	Black=1      OK:         	White=13    	Black=18     Best:        	White=4     	Black=6} 0-1